bitfinex-derivatives/quotes_SOLF0:USTF0_20250609
["timestamp","ask_amount","ask_price","bid_price","bid_amount"]
[1749497699199,6.46995796,155.52,155.5,6.4269]
[1749497700196,0.04355796,155.52,155.5,6.4269]
[1749497702193,0.04355796,155.52,155.5,14.11051592]
[1749497702705,0.04355796,155.52,155.51,6.4266]
[1749497706705,0.04355796,155.52,155.51,14.11021592]
[1749497711208,0.04355796,155.52,155.51,11.34383865]
[1749497717220,5.14338513,155.58,155.57,4.91723865]
[1749497717719,11.56708513,155.58,155.57,4.91723865]
[1749497718120,6.4237,155.58,155.57,4.91723865]
[1749497719023,8.66791907,155.59,155.57,4.91723865]
[1749497719208,2.24431907,155.59,155.57,4.91723865]
[1749497719821,6.4237,155.58,155.57,4.91723865]
[1749497722319,6.4237,155.58,155.56,0.04364627]
[1749497722521,6.4237,155.58,155.57,4.91723865]
[1749497724421,6.4241,155.57,155.56,4.96088492]
[1749497724624,11.57244055,155.57,155.56,0.04364627]
[1749497725620,6.4241,155.57,155.56,4.96088492]
[1749497726426,11.5726203,155.58,155.56,4.96088492]
[1749497726625,6.4239,155.58,155.57,4.91723865]
[1749497727421,8.66781907,155.59,155.57,4.91723865]
[1749497727619,8.66781907,155.59,155.58,4.91723865]
[1749497727819,11.61997532,155.59,155.58,4.91723865]
[1749497729426,6.4238,155.58,155.56,0.04364627]
[1749497729632,6.4238,155.58,155.57,4.91723865]
[1749497729927,6.4238,155.58,155.56,0.04364627]
[1749497730126,6.4238,155.58,155.57,4.91723865]
[1749497732328,6.46681907,155.59,155.57,4.91723865]
[1749497733132,6.46681907,155.59,155.58,4.91723865]
[1749497733333,11.62268935,155.59,155.58,4.91723865]
[1749497733633,6.46681907,155.59,155.58,4.91723865]
[1749497734036,0.04331907,155.59,155.58,4.91723865]
[1749497736025,0.04331907,155.59,155.57,6.4241]
[1749497736227,0.04331907,155.59,155.58,4.91723865]
[1749497743439,0.04331907,155.59,155.58,11.34093865]
[1749497743636,0.04331907,155.59,155.58,4.91723865]
[1749497744738,0.04331907,155.59,155.58,11.34093865]
[1749497746035,0.04331907,155.59,155.56,0.04364627]
[1749497746336,4.96055772,155.59,155.56,4.96088492]
[1749497746839,6.4241,155.58,155.57,4.91723865]
[1749497747036,0.04331907,155.59,155.57,4.91723865]
[1749497747236,0.04331907,155.59,155.58,4.91723865]
[1749497747637,6.46691907,155.59,155.58,4.91723865]
[1749497748340,11.62683392,155.59,155.58,4.91723865]
[1749497748738,0.04331907,155.59,155.58,4.91723865]
[1749497749339,5.20109041,155.59,155.58,4.91723865]
[1749497749735,0.04331907,155.59,155.58,4.91723865]
[1749497750140,5.20050925,155.59,155.58,4.91723865]
[1749497750740,11.62380925,155.59,155.58,4.91723865]
[1749497751941,5.20050925,155.59,155.58,4.91723865]
[1749497752644,11.62380925,155.59,155.58,4.91723865]
[1749497753034,5.20050925,155.59,155.58,4.91723865]
[1749497753442,0.04331907,155.59,155.58,4.91723865]
[1749497753946,0.04331907,155.59,155.58,11.34093865]
[1749497754142,0.04331907,155.59,155.58,4.91723865]
[1749497754545,6.46661907,155.59,155.57,4.91723865]
[1749497755141,6.4237,155.58,155.56,4.96088492]
[1749497755343,5.15896327,155.57,155.56,4.96088492]
[1749497756641,11.58306327,155.57,155.56,4.96088492]
[1749497757846,5.15896327,155.57,155.56,4.96088492]
[1749497758045,5.15925637,155.57,155.56,4.96088492]
[1749497759248,6.4239,155.58,155.56,4.96088492]
[1749497759436,5.16149531,155.57,155.56,0.04364627]
[1749497760148,5.16169905,155.57,155.56,0.04364627]
[1749497760648,5.16169905,155.57,155.56,4.96088492]
[1749497761450,5.16169905,155.57,155.56,0.04364627]
[1749497761649,5.16169905,155.57,155.56,4.96088492]
[1749497762150,5.16169905,155.57,155.56,11.38548492]
[1749497762446,11.58579905,155.57,155.56,4.96088492]
[1749497766450,5.16169905,155.57,155.56,4.96088492]
[1749497767750,5.16169905,155.57,155.56,11.38548492]
[1749497769253,5.16169905,155.57,155.56,4.96088492]
[1749497772155,6.4239,155.58,155.56,4.96088492]
[1749497772451,6.4239,155.58,155.57,4.91723865]
[1749497772653,11.58476259,155.58,155.57,4.91723865]
[1749497776857,6.4239,155.58,155.57,4.91723865]
[1749497778458,6.46681907,155.59,155.57,4.91723865]
[1749497778657,6.46681907,155.59,155.58,4.91723865]
[1749497778860,11.62658354,155.59,155.58,4.91723865]
[1749497779361,5.20308354,155.59,155.58,4.91723865]
[1749497781856,11.62638354,155.59,155.58,4.91723865]
[1749497782957,11.63331931,155.59,155.58,4.91723865]
[1749497783262,5.21001931,155.59,155.58,4.91723865]
[1749497784060,11.63331931,155.59,155.58,4.91723865]
[1749497786759,5.21001931,155.59,155.56,0.04364627]
[1749497786963,5.16670024,155.58,155.57,4.91723865]
[1749497787157,11.59040024,155.58,155.57,4.91723865]
[1749497789365,11.59040024,155.58,155.56,11.38528492]
[1749497789563,5.16670024,155.57,155.56,6.46804627]
[1749497789868,5.16670024,155.57,155.56,11.38528492]
[1749497792561,5.16670024,155.57,155.56,4.96088492]
[1749497794863,6.4237,155.58,155.56,4.96088492]
[1749497795063,6.4237,155.58,155.57,4.91723865]
[1749497795268,0.04331907,155.59,155.57,4.91723865]
[1749497795469,0.04331907,155.59,155.58,4.91723865]
[1749497795769,5.20843728,155.59,155.58,4.91723865]
[1749497796668,11.63173728,155.59,155.58,4.91723865]
[1749497799772,5.20843728,155.59,155.58,4.91723865]
[1749497800371,11.63173728,155.59,155.58,4.91723865]
[1749497801674,6.4241,155.57,155.56,0.04364627]
[1749497801872,6.4241,155.57,155.56,4.96088492]
[1749497804174,6.4239,155.58,155.56,4.96088492]
[1749497804374,6.4239,155.58,155.57,4.91723865]
[1749497807078,11.59462075,155.58,155.57,4.91723865]
[1749497807479,11.59463517,155.58,155.57,4.91723865]
[1749497807678,11.59465867,155.58,155.57,4.91723865]
[1749497807976,6.4239,155.58,155.57,4.91723865]
[1749497808376,6.46681907,155.59,155.57,4.91723865]
[1749497808580,6.46681907,155.59,155.58,4.91723865]
[1749497808775,11.64054393,155.59,155.58,4.91723865]
[1749497811183,5.21704393,155.59,155.58,4.91723865]
[1749497812880,11.64034393,155.59,155.58,4.91723865]
[1749497813684,6.4238,155.58,155.56,0.04364627]
[1749497813880,5.17325107,155.57,155.56,0.04364627]
[1749497814074,6.4238,155.58,155.56,0.04364627]
[1749497814274,6.46691907,155.59,155.57,4.91723865]
[1749497814474,6.46691907,155.59,155.58,4.91723865]
[1749497814680,11.64078187,155.59,155.58,4.91723865]
[1749497815785,11.64078187,155.59,155.57,4.91723865]
[1749497815985,5.1738628,155.58,155.57,4.91723865]
[1749497818087,5.1738628,155.58,155.57,11.34133865]
[1749497820491,6.46691907,155.59,155.57,4.91723865]
[1749497820688,6.46691907,155.59,155.58,4.91723865]
[1749497820882,11.63583394,155.59,155.58,4.91723865]
[1749497821279,6.4237,155.58,155.56,6.46804627]
[1749497821485,0.04331907,155.59,155.57,4.91723865]
[1749497821689,5.16856751,155.58,155.57,6.4239]
[1749497822890,0.04331907,155.59,155.57,11.34113865]
[1749497823089,0.04331907,155.59,155.58,4.91723865]
[1749497823290,5.21233058,155.59,155.58,11.34093865]
[1749497823587,2.134,155.64,155.58,4.91723865]
[1749497823885,2.134,155.64,155.63,4.91723865]
[1749497824091,2.134,155.64,155.62,4.91723865]
[1749497824291,13.00302613,155.64,155.6,4.91723865]
[1749497824684,13.00302613,155.64,155.6,4.96071562]
[1749497824685,13.05068683,155.64,155.6,4.96071562]
[1749497824986,6.4225,155.61,155.6,4.96071562]
[1749497827889,6.4225,155.61,155.6,0.04347697]
[1749497828087,5.95178748,155.63,155.6,4.96071562]
[1749497828297,0.0476607,155.64,155.62,4.91723865]
[1749497828494,0.0476607,155.64,155.61,4.91723865]
[1749497828793,6.4223,155.62,155.61,4.91723865]
[1749497833494,6.4223,155.62,155.6,11.38361562]
[1749497834694,0.0476607,155.64,155.61,11.33963865]
[1749497834901,0.0476607,155.64,155.62,4.91723865]
[1749497835702,11.57533656,155.63,155.62,4.91723865]
[1749497839699,5.15363656,155.63,155.62,4.91723865]
[1749497840096,5.15363656,155.63,155.61,6.4224]
[1749497840301,5.15363656,155.62,155.61,11.33963865]
[1749497841502,6.4217,155.63,155.61,6.4224]
[1749497841800,6.4217,155.63,155.62,4.91723865]
[1749497842001,11.57226805,155.63,155.61,11.33963865]
[1749497842197,6.4217,155.63,155.61,11.33963865]
[1749497842597,6.4217,155.63,155.62,4.91723865]
[1749497842798,11.5720551,155.63,155.62,4.91723865]
[1749497843501,11.5720551,155.63,155.61,11.33963865]
[1749497843700,6.4217,155.63,155.61,11.33963865]
[1749497845003,6.4217,155.63,155.62,4.91723865]
[1749497845306,11.57068183,155.63,155.62,4.91723865]
[1749497845605,5.14898183,155.63,155.62,4.91723865]
[1749497846505,11.57068183,155.63,155.62,4.91723865]
[1749497846908,11.57068183,155.63,155.61,6.4224]
[1749497847207,6.4217,155.63,155.61,6.4224]
[1749497847807,6.4217,155.63,155.6,11.38351562]
[1749497848107,6.4217,155.63,155.6,4.96071562]
[1749497848309,6.4217,155.63,155.61,6.4225]
[1749497849707,6.4217,155.63,155.6,11.38341562]
[1749497850510,6.4217,155.63,155.61,6.4224]
[1749497851008,4.96489935,155.64,155.6,11.38341562]
[1749497851211,5.14792331,155.63,155.6,4.96071562]
[1749497851409,4.96489935,155.64,155.6,4.96071562]
[1749497851713,11.56984903,155.63,155.6,11.38331562]
[1749497852018,6.422,155.63,155.6,11.38331562]
[1749497852610,0.0476607,155.64,155.61,11.33973865]
[1749497852807,5.14804569,155.63,155.61,11.33973865]
[1749497853008,0.0476607,155.64,155.61,4.91723865]
[1749497853210,5.14800963,155.63,155.61,4.91723865]
[1749497853512,6.4221,155.62,155.61,4.91723865]
[1749497858011,6.4221,155.62,155.6,11.38341562]
[1749497858414,6.4225,155.61,155.6,0.04347697]
[1749497858813,11.57065185,155.61,155.6,0.04347697]
[1749497859016,10.0653905,155.61,155.57,4.91723865]
[1749497859217,4.91723865,155.63,155.59,4.91723865]
[1749497859417,5.14919728,155.62,155.59,4.91723865]
[1749497859620,5.14919728,155.61,155.59,4.91723865]
[1749497859823,5.14984152,155.6,155.59,4.91723865]
[1749497860122,6.46722142,155.61,155.59,11.34053865]
[1749497861623,5.15167476,155.6,155.59,11.34053865]
[1749497863324,6.46722142,155.61,155.59,11.34053865]
[1749497863622,5.14634709,155.6,155.59,11.34053865]
[1749497864219,6.46722142,155.61,155.6,6.4229]
[1749497864220,0.04452142,155.61,155.6,6.4229]
[1749497864422,5.19308212,155.61,155.6,4.91723865]
[1749497868228,5.19308212,155.61,155.6,11.34013865]
[1749497870923,11.61558212,155.61,155.59,11.34033865]
[1749497871123,5.1485607,155.6,155.59,11.34033865]
[1749497871630,11.5714607,155.6,155.58,11.38897791]
[1749497871820,5.1485607,155.59,155.58,11.38897791]
[1749497874333,6.46722142,155.61,155.58,6.47173926]
[1749497874631,11.57566446,155.6,155.59,4.91723865]
[1749497875429,5.15276446,155.6,155.59,4.91723865]
[1749497875929,11.57566446,155.6,155.59,4.91723865]
[1749497879631,11.57566446,155.6,155.58,0.04813926]
[1749497879632,6.4233,155.59,155.58,0.04813926]
[1749497879935,16.49330311,155.59,155.58,0.04813926]
[1749497880630,11.57606446,155.59,155.58,0.04813926]
[1749497881626,5.15276446,155.59,155.58,0.04813926]
[1749497882837,5.15276446,155.59,155.58,6.47183926]
[1749497884233,5.15276446,155.59,155.58,11.38907791]
[1749497885434,5.15276446,155.59,155.58,4.96537791]
[1749497885634,11.57606446,155.59,155.58,4.96537791]
[1749497887541,11.57606446,155.59,155.58,0.04813926]
[1749497889434,6.4245,155.57,155.52,402.46]
[1749497889635,4.91723865,155.54,155.52,32.5]
[1749497889840,4.91723865,155.55,155.52,37.41723865]
[1749497890036,6.4252,155.55,155.53,4.91723865]
[1749497892542,11.57353138,155.55,155.52,43.84323865]
[1749497893042,6.4255,155.54,155.52,43.84323865]
[1749497893339,4.91723865,155.54,155.51,11.34373865]
[1749497893642,11.34283865,155.54,155.51,11.34373865]
[1749497895446,6.4261,155.53,155.51,11.34373865]
[1749497896446,11.34273865,155.54,155.51,11.34373865]
[1749497896746,6.4255,155.54,155.51,11.34373865]
[1749497897848,6.4255,155.54,155.51,4.91723865]
[1749497898148,6.4261,155.53,155.51,4.91723865]
[1749497899352,6.4262,155.52,155.51,4.91723865]
[1749497901045,4.91723865,155.53,155.49,32.5]
[1749497901252,4.91723865,155.52,155.48,7.66447688]
[1749497901953,4.91723865,155.51,155.48,7.66447688]
[1749497902150,4.91723865,155.51,155.44,370.0]
[1749497902151,4.91723865,155.49,155.43,32.5]
[1749497902452,4.91723865,155.45,155.41,32.5]
[1749497902651,4.91723865,155.43,155.39,4.91723865]
[1749497902949,6.4308,155.41,155.38,43.84883865]
[1749497903546,4.91723865,155.42,155.39,6.4314]
[1749497903547,11.34773865,155.42,155.39,6.4314]
[1749497903951,4.91723865,155.42,155.37,4.91723865]
[1749497904150,4.91723865,155.41,155.37,4.91723865]
[1749497904345,4.91723865,155.4,155.37,4.91723865]
[1749497904652,4.91723865,155.4,155.35,32.5]
[1749497904653,4.91723865,155.38,155.35,4.91723865]
[1749497904847,4.96049769,155.38,155.35,4.91723865]
[1749497905052,6.4324,155.37,155.35,4.91723865]
[1749497905247,0.04325904,155.38,155.32,40.22222821]
[1749497905652,6.4329,155.36,155.33,6.4338]
[1749497905850,0.04325904,155.38,155.32,40.22222821]
[1749497906548,0.04325904,155.38,155.34,7.70222821]
[1749497906951,0.04325904,155.38,155.35,6.433]
[1749497907356,0.04325904,155.38,155.34,7.70222821]
[1749497907549,6.47555904,155.38,155.34,14.13582821]
[1749497908551,6.47555904,155.38,155.35,6.4332]
[1749497908957,0.04325904,155.38,155.35,6.4332]
[1749497910758,6.47535904,155.38,155.35,6.4332]
[1749497911459,0.04325904,155.38,155.36,6.4327]
[1749497912258,0.04325904,155.38,155.37,6.4324]
[1749497917163,0.04325904,155.38,155.36,6.4327]
[1749497918763,6.47535904,155.38,155.35,14.13532821]
[1749497923565,0.04325904,155.38,155.35,14.13532821]
[1749497923869,0.04325904,155.38,155.36,6.4328]
[1749497930472,6.47525904,155.38,155.36,6.4328]
[1749497932571,0.04325904,155.38,155.37,14.13462821]
[1749497932972,9.81242821,155.45,155.37,7.70222821]
[1749497933171,9.81242821,155.45,155.39,14.13362821]
[1749497933881,6.431,155.41,155.39,7.70222821]
[1749497937678,6.47159628,155.42,155.39,14.13362821]
[1749497938377,6.4308,155.41,155.39,14.13362821]
[1749497938780,0.04109628,155.42,155.4,32.5]
[1749497938984,0.04109628,155.42,155.41,7.70222821]
[1749497939284,34.7316,155.51,155.41,7.70222821]
[1749497939581,6.428,155.48,155.44,7.70222821]
[1749497939883,6.428,155.48,155.45,38.9289]
[1749497940281,6.46944148,155.48,155.45,38.97837979]
[1749497940480,6.4284,155.47,155.45,32.54947979]
[1749497941582,6.4284,155.47,155.45,38.97857979]
[1749497941985,6.46954148,155.48,155.45,38.97857979]
[1749497942788,6.4283,155.47,155.45,38.97857979]
[1749497942987,6.4283,155.47,155.45,32.54947979]
[1749497944489,6.46954148,155.48,155.45,38.97857979]
[1749497945384,5.20349332,155.47,155.45,38.97857979]
[1749497945587,6.46954148,155.48,155.45,38.97857979]
[1749497945788,5.20233886,155.47,155.45,38.97857979]
[1749497946086,5.20234057,155.47,155.45,38.97857979]
[1749497946284,6.46954148,155.48,155.45,38.97857979]
[1749497946483,5.20602997,155.47,155.45,38.97857979]
[1749497946679,6.46954148,155.48,155.45,38.97857979]
[1749497946878,5.20591108,155.47,155.45,38.97857979]
[1749497947084,6.46954148,155.48,155.45,38.97857979]
[1749497947280,40.60244256,155.51,155.45,38.97857979]
[1749497947281,12.29754256,155.51,155.47,7.70222821]
[1749497947487,370.38,155.62,155.5,7.70222821]
[1749497947488,5.87084256,155.56,155.5,7.70222821]
[1749497947793,6.4256,155.54,155.52,7.70222821]
[1749497947987,5.87084256,155.57,155.5,46.60912821]
[1749497948384,6.4255,155.54,155.52,0.04796644]
[1749497951492,6.4258,155.53,155.52,0.04796644]
[1749497952397,6.4255,155.54,155.52,0.04796644]
[1749497952889,6.4735145,155.55,155.52,6.47406644]
[1749497953089,0.0484145,155.55,155.53,7.70222821]
[1749497954094,6.4254,155.54,155.53,7.70222821]
[1749497954989,6.4258,155.53,155.52,0.04796644]
[1749497980309,12.88571503,155.53,155.43,32.4]
[1749497980513,7.70222821,155.49,155.43,32.4]
[1749497980708,6.4292,155.45,155.43,38.8297]
[1749497980914,7.70222821,155.49,155.43,38.8297]
[1749497981214,6.4288,155.46,155.44,0.04438143]
[1749497981412,0.04277203,155.48,155.44,0.04438143]
[1749497982112,6.4284,155.47,155.44,0.04438143]
[1749497983416,6.4287,155.46,155.44,0.04438143]
[1749497984619,6.4285,155.47,155.44,6.47388143]
[1749497984818,0.04277203,155.48,155.44,0.04438143]
[1749497985217,5.2278719,155.48,155.44,0.04438143]
[1749497985419,6.4283,155.47,155.44,6.47368143]
[1749497985720,6.4283,155.47,155.44,14.17590964]
[1749497987321,6.47077203,155.48,155.45,6.429]
[1749497987921,6.4283,155.47,155.44,14.17590964]
[1749497988620,6.4287,155.46,155.44,7.74660964]
[1749497990119,6.4285,155.47,155.44,14.17610964]
[1749497990517,0.04277203,155.48,155.44,14.17610964]
[1749497990921,6.4287,155.46,155.44,7.74660964]
[1749497995725,6.4287,155.46,155.44,14.17610964]
[1749497996319,6.4287,155.46,155.44,7.74660964]
[1749497999229,6.4291,155.45,155.44,0.04438143]
[1749497999627,0.04277203,155.48,155.44,7.74660964]
[1749497999822,11.65506132,155.48,155.46,7.70222821]
[1749498000016,6.47107203,155.48,155.46,7.70222821]
[1749498000520,6.4283,155.47,155.46,7.70222821]
[1749498000924,6.4283,155.47,155.44,46.57590964]
[1749498002127,6.47087203,155.48,155.45,6.4291]
[1749498003526,6.4283,155.47,155.45,6.4291]
[1749498003730,6.4283,155.47,155.44,46.57590964]
[1749498009233,6.4283,155.47,155.46,4.92164305]
[1749498010235,4.92164305,155.47,155.44,32.44438143]
[1749498010436,4.92164305,155.46,155.44,0.04438143]
[1749498010635,4.92164305,155.45,155.44,0.04438143]
[1749498011430,5.24646559,155.45,155.44,0.04438143]
[1749498011736,6.4291,155.45,155.44,0.04438143]
[1749498014335,11.66634855,155.45,155.44,0.04438143]
[1749498029849,6.4312,155.4,155.39,32.38]
[1749498030349,6.4304,155.42,155.39,40.07428557]
[1749498030747,6.4304,155.42,155.39,46.50548557]
[1749498030944,6.47161033,155.42,155.39,46.54702002]
[1749498032155,6.4309,155.41,155.39,46.54702002]
[1749498032355,6.4309,155.41,155.39,40.11582002]
[1749498032749,0.04121033,155.42,155.39,32.42153445]
[1749498032954,6.4312,155.4,155.39,32.42153445]
[1749498033358,6.4312,155.4,155.39,37.34720968]
[1749498034847,6.4312,155.4,155.39,32.42153445]
[1749498035157,6.4312,155.4,155.39,0.04153445]
[1749498035555,6.4312,155.4,155.39,4.96720968]
[1749498036057,6.4309,155.41,155.39,4.96720968]
[1749498036258,6.4309,155.41,155.4,4.92567523]
[1749498039859,0.04121033,155.42,155.4,4.92567523]
[1749498040055,0.04121033,155.42,155.41,4.92567523]
[1749498040456,6.47151033,155.42,155.41,4.92567523]
[1749498042659,0.04121033,155.42,155.41,4.92567523]
[1749498042860,0.04121033,155.42,155.41,11.35647523]
[1749498043062,0.04121033,155.42,155.41,4.92567523]
[1749498044460,0.04121033,155.42,155.41,11.35647523]
[1749498045865,4.96688556,155.42,155.3,2.3136]
[1749498046060,4.92567523,155.42,155.39,4.92567523]
[1749498046766,6.4312,155.4,155.39,4.92567523]
[1749498049762,4.92567523,155.41,155.38,4.92567523]
[1749498051669,6.4316,155.39,155.38,4.92567523]
[1749498052766,6.4324,155.37,155.36,32.36]
[1749498053170,0.04910629,155.38,155.36,4.92567523]
[1749498053871,0.04910629,155.38,155.33,32.36]
[1749498054168,6.4326,155.37,155.36,4.92567523]
[1749498056672,6.48120629,155.38,155.36,4.92567523]
[1749498056870,6.48120629,155.38,155.37,4.92567523]
[1749498059369,6.4325,155.37,155.35,14.1321291]
[1749498060284,6.4325,155.37,155.35,7.6992291]
[1749498061381,0.04910629,155.38,155.35,7.6992291]
[1749498062284,6.4328,155.37,155.35,7.6992291]
[1749498062582,0.04910629,155.38,155.35,7.6992291]
[1749498062780,0.04910629,155.38,155.37,7.6992291]
[1749498064484,6.48110629,155.38,155.37,7.6992291]
[1749498066187,0.04910629,155.38,155.37,14.1316291]
[1749498066383,0.04910629,155.38,155.37,46.4916291]
[1749498070092,6.4306,155.42,155.4,6.4309]
[1749498070290,6.4306,155.42,155.4,14.1301291]
[1749498071384,6.4306,155.42,155.4,7.6992291]
[1749498072091,6.4306,155.42,155.4,14.1303291]
[1749498072296,6.4306,155.42,155.4,7.6992291]
[1749498072690,6.4308,155.41,155.4,7.6992291]
[1749498073697,6.4305,155.42,155.4,7.6992291]
[1749498074398,6.47596309,155.43,155.4,7.6992291]
[1749498074599,0.04596309,155.43,155.42,7.6992291]
[1749498075397,0.04596309,155.43,155.42,14.1295291]
[1749498078203,0.04596309,155.43,155.42,6.4303]
[1749498078402,0.04596309,155.43,155.42,14.1295291]
[1749498081205,0.04596309,155.43,155.42,11.35285537]
[1749498088612,6.4285,155.47,155.44,6.4292]
[1749498088817,5.23946014,155.46,155.41,32.32]
[1749498089007,2.132,155.5,155.45,4.92255537]
[1749498089321,167.73517287,155.51,155.45,32.32]
[1749498089618,5.23929004,155.5,155.45,32.32]
[1749498089814,0.04807818,155.5,155.46,0.04478709]
[1749498090119,6.47527818,155.5,155.47,6.4282]
[1749498090306,11.71292741,155.5,155.47,6.4282]
[1749498090511,6.47527818,155.5,155.49,4.92255537]
[1749498090712,11.71308732,155.5,155.49,4.92255537]
[1749498091118,6.47527818,155.5,155.49,4.92255537]
[1749498091321,6.47527818,155.5,155.48,14.11584546]
[1749498093121,6.4275,155.49,155.48,7.68804546]
[1749498093321,6.4275,155.49,155.47,6.4281]
[1749498093522,6.4275,155.49,155.48,7.68804546]
[1749498094224,6.4275,155.49,155.46,6.47338709]
[1749498094422,0.04807818,155.5,155.46,0.04478709]
[1749498094622,5.29406274,155.5,155.46,0.04478709]
[1749498095025,2.283,155.49,155.46,0.04478709]
[1749498095725,6.4283,155.47,155.46,0.04478709]
[1749498099228,8.7023,155.47,155.46,0.04478709]
[1749498099426,6.4283,155.47,155.46,0.04478709]
[1749498100230,6.4283,155.47,155.46,7.73283255]
[1749498100727,6.4279,155.48,155.46,7.73283255]
[1749498100928,2.283,155.49,155.46,7.73283255]
[1749498101626,6.4279,155.48,155.46,7.73283255]
[1749498102732,6.4283,155.47,155.46,7.73283255]
[1749498107832,6.4283,155.47,155.46,0.04478709]
[1749498108233,11.67301715,155.47,155.46,0.04478709]
[1749498108435,6.4283,155.47,155.46,0.04478709]
[1749498108636,11.67301715,155.47,155.46,0.04478709]
[1749498110641,6.4295,155.44,155.43,7.68804546]
[1749498112642,6.4299,155.43,155.42,32.32547242]
[1749498112841,6.4299,155.43,155.42,40.01351788]
[1749498113339,6.4299,155.43,155.42,37.24986714]
[1749498113950,6.4299,155.43,155.42,32.32547242]
[1749498114351,6.4299,155.43,155.42,37.24986714]
[1749498115252,6.4299,155.43,155.42,32.32547242]
[1749498115453,11.67763491,155.43,155.42,32.32547242]
[1749498115753,11.67763491,155.43,155.42,37.24986714]
[1749498115952,11.67763491,155.43,155.42,4.96986714]
[1749498127263,6.4299,155.43,155.42,4.96986714]
[1749498127463,11.66426063,155.43,155.42,0.04547242]
[1749498133465,6.4312,155.4,155.39,32.28]
[1749498133756,5.23436063,155.43,155.39,4.92439472]
[1749498133757,10.14539643,155.42,155.39,4.92439472]
[1749498133963,5.22100171,155.41,155.39,4.92439472]
[1749498134758,6.4312,155.4,155.39,4.92439472]
[1749498134959,0.04867101,155.42,155.39,4.92439472]
[1749498135154,5.26928103,155.42,155.4,4.92439472]
[1749498135355,6.4308,155.41,155.4,4.92439472]
[1749498135560,0.04867101,155.42,155.38,6.432]
[1749498135764,5.26903463,155.42,155.4,4.92439472]
[1749498136868,0.04867101,155.42,155.39,4.92439472]
[1749498137561,6.4317,155.39,155.37,6.4321]
[1749498137767,6.4317,155.39,155.38,4.92439472]
[1749498138163,6.4317,155.39,155.37,6.4321]
[1749498138364,6.4317,155.39,155.38,4.92439472]
[1749498140867,6.4313,155.4,155.38,4.92439472]
[1749498141067,6.4313,155.4,155.39,4.92439472]
[1749498143473,6.4312,155.4,155.39,4.92439472]
[1749498144672,6.4318,155.39,155.37,6.4321]
[1749498144861,5.21989993,155.41,155.38,4.92439472]
[1749498145068,10.14372739,155.4,155.36,32.26]
[1749498145268,4.92439472,155.4,155.37,4.92439472]
[1749498145768,10.14357817,155.4,155.37,4.92439472]
[1749498145971,4.92439472,155.4,155.37,4.92439472]
[1749498146170,4.92439472,155.41,155.37,4.92439472]
[1749498146368,5.21912191,155.4,155.37,4.92439472]
[1749498146568,4.92439472,155.41,155.37,4.92439472]
[1749498146767,6.4324,155.38,155.37,4.92439472]
[1749498147270,10.14425998,155.4,155.33,32.26]
[1749498147471,0.0456963,155.38,155.36,4.92439472]
[1749498148271,0.0456963,155.38,155.33,38.6938]
[1749498148460,0.0456963,155.38,155.36,4.92439472]
[1749498148662,6.4324,155.37,155.36,4.92439472]
[1749498151774,6.433,155.36,155.33,38.6939]
[1749498152075,6.433,155.36,155.35,4.92439472]
[1749498152368,6.433,155.36,155.33,38.6939]
[1749498152572,6.433,155.36,155.35,4.92439472]
[1749498153972,6.433,155.36,155.33,38.694]
[1749498154171,6.433,155.36,155.35,4.92439472]
[1749498155472,0.0456963,155.38,155.33,32.26]
[1749498155677,4.97009102,155.38,155.34,4.92439472]
[1749498155877,7.15239102,155.38,155.34,4.92439472]
[1749498156077,7.15239102,155.38,155.35,4.92439472]
[1749498157475,7.15239102,155.38,155.33,32.26]
[1749498157476,6.4336,155.35,155.34,4.92439472]
[1749498158374,6.4337,155.34,155.33,37.18439472]
[1749498158680,6.4337,155.34,155.33,4.92439472]
[1749498158877,4.92439472,155.35,155.31,4.92439472]
[1749498159078,4.92439472,155.32,155.29,4.92439472]
[1749498159278,4.97225691,155.32,155.29,4.92439472]
[1749498159481,6.4356,155.3,155.29,4.92439472]
[1749498159778,10.11593452,155.3,155.22,4.92439472]
[1749498159978,6.4379,155.24,155.22,4.92439472]
[1749498160174,4.92439472,155.26,155.22,4.92439472]
[1749498160771,0.04528642,155.28,155.24,4.92439472]
[1749498160972,11.40588114,155.28,155.24,4.92439472]
[1749498161172,4.96968114,155.28,155.21,2.74723823]
[1749498161371,0.04528642,155.28,155.22,7.71247521]
[1749498161882,6.4368,155.27,155.22,14.15097521]
[1749498162189,5.18508443,155.28,155.21,2.74723823]
[1749498162190,32.26,155.26,155.21,2.74723823]
[1749498162388,7.71247521,155.24,155.21,2.74723823]
[1749498162580,7.76048362,155.24,155.21,2.74723823]
[1749498163887,0.04800841,155.24,155.21,2.74723823]
[1749498164181,0.04800841,155.24,155.21,10.45971344]
[1749498164383,0.04800841,155.24,155.22,6.4383]
[1749498164584,0.04800841,155.24,155.23,7.71247521]